Cogmind - Beta 17.1 @@@ ROGUE MODE // 2026.09.12 @ 08:19:30 Player: eph7ra Result: Self-destructed Performance ------------- Evolutions (1) 500 Regions Visited (2) 400 Robots Destroyed (19) 95 Value Destroyed (439) 439 Prototype IDs (0) 0 Alien Tech Used (0) 0 Bonus (0) 0 TOTAL SCORE: 1434 Bonus ------- None Cogmind --------- Core Integrity 239/400 Matter 300/300 Energy 265/265 System Corruption 0% Temperature Cool (18) Movement Treading (240) Ox1 Location -9/Materials Parts ------- > --- POWER (1) -------- Reinforced Ion Engine > --- PROPULSION (3) --- Light Treads > --- UTILITY (3) ------ Small Storage Unit Large Storage Unit > --- WEAPON (2) ------- Heavy Assault Rifle > --- INVENTORY (15) --- Ion Engine Light Ion Engine Light Ion Engine Cooled Ion Engine Wheel Compact Wheel Signal Interpreter Terrain Scan Processor EM Pulse Gun Small Laser Peak State ------------ > --- POWER ------------ Reinforced Ion Engine > --- PROPULSION ------- Light Treads Light Treads Aluminum Leg > --- UTILITY ---------- Small Storage Unit Large Storage Unit > --- WEAPON ----------- Heavy Assault Rifle Mini Grenade Launcher > --- INVENTORY -------- Ion Engine Light Ion Engine Light Ion Engine Cooled Ion Engine Wheel Compact Wheel Signal Interpreter Terrain Scan Processor EM Pulse Gun Small Laser [Rating: 12] Favorites ----------- Power Light Ion Engine Engine Light Ion Engine Propulsion Aluminum Leg Treads Light Treads Leg Aluminum Leg Utility Small Storage Unit Device Shield Generator Storage Small Storage Unit Protection Light Armor Plating Weapon Light Assault Rifle Energy Gun EM Pulse Gun Ballistic Gun Light Assault Rifle Launcher Mini Grenade Launcher Build | -11 -10 -9 ------- Run | Yrd Mat Mat Slots Evolved 2 | . . 2 Power . | . . . Propulsion 1 | . . 1 Utility 1 | . . 1 Weapon . | . . . Parts Attached 19 | 6 4 9 Power 3 | 1 1 1 Engine 3 | 1 1 1 Core . | . . . Reactor . | . . . Propulsion 6 | 2 1 3 Treads 3 | . . 3 Leg 3 | 2 1 . Wheel . | . . . Hover . | . . . Flight . | . . . Utility 5 | 1 2 2 Device 1 | . 1 . Storage 2 | 1 1 . Processor . | . . . Hackware . | . . . Protection 2 | . . 2 Artifact . | . . . Weapon 5 | 2 . 3 Energy Gun 1 | . . 1 Energy Cannon . | . . . Ballistic Gun 3 | 2 . 1 Ballistic Cannon . | . . . Launcher 1 | . . 1 Special Weapon . | . . . Impact Weapon . | . . . Slashing Weapon . | . . . Piercing Weapon . | . . . Special Melee Weapon . | . . . Unidentified Prototypes . | . . . Parts Lost 10 | . 2 8 Power . | . . . Propulsion 4 | . . 4 Utility 3 | . 1 2 Weapon 3 | . 1 2 Highest Loss Streak 4 | . 2 4 To Critical Strikes . | . . . Average Backups 8 | 3 7 10 Power 2 | . 1 3 Propulsion 4 | 2 4 3 Utility 1 | . . 1 Weapon . | . 1 1 Tool/Special . | . . . Unused Backups 7 | . . 7 Power 2 | . . 2 Propulsion 2 | . . 2 Utility 2 | . . 2 Weapon 1 | . . 1 Tool/Special . | . . . Average Slot Usage (%) 84 | . 87 81 Engine 12 | . 14 11 Treads 5 | . . 10 Leg 21 | . 28 14 Device 1 | . 2 . Storage 18 | . 15 22 Protection 2 | . . 4 Energy Gun 1 | . . 3 Ballistic Gun 16 | . 26 7 Launcher 4 | . . 8 Peak Build Rating 12 | 6 8 12 Average Rating 7 | 3 6 10 On Entrance 4 | . 6 6 Avg Prop Armor Cover (%) 6 | . . 6 Naked Turns . | . . . Heaviest Build 41 | 10 29 41 Greatest Support 60 | 20 20 60 Greatest Overweight (x) 4 | . 1 4 Average Overweight (x) . | . . . Largest Inventory Capacity 15 | 8 15 15 Average Capacity 11 | 6 8 15 Most Carried 12 | 6 9 12 Average Carried 8 | 4 7 10 Final Capacity 15 | 8 15 15 Final Carried 10 | 6 9 10 Class Distribution -------------------- 100% | Mutant Dominant Class ---------------- Mutant | -10/Materials Mutant | -9/Materials Resources | -11 -10 -9 ----------- Run | Yrd Mat Mat Matter Collected 506 | 197 121 188 Remotely . | . . . Salvage Created 613 | . 134 479 Parts 35 | . 10 25 Haulers Intercepted . | . . . Recyclers Shooed . | . . . Parts Field Recycled . | . . . Retrieved Matter . | . . . Parts Self-Destructed . | . . . Prevented . | . . . Parts Restored . | . . . Kills | -11 -10 -9 ------- Run | Yrd Mat Mat Combat Hostiles Destroyed 16 | . 5 11 Guns 12 | . 5 7 AOE 4 | . . 4 Classes Destroyed 6 | . 2 4 Builder 2 | . . 2 Recycler 1 | . . 1 Swarmer 7 | . 3 4 Grunt 6 | . 2 4 Brawler 1 | . . 1 Sentry 2 | . . 2 Best Kill Streak 9 | . 3 9 Combat Bots Only 6 | . 3 6 Max Kills in Single Turn 4 | . 1 4 Gunslinging . | . . . Exploded 3 | . . 3 Melee . | . . . Uniques/NPCs Destroyed . | . . . Combat | -11 -10 -9 -------- Run | Yrd Mat Mat Hostile Shots Fired 158 | . 36 122 Missed 42 | . 9 33 Hits 116 | . 27 89 Melee 2 | . . 2 Projectile 114 | . 27 87 AOE 1 | . 1 . Critical Strikes 1 | . . 1 Damage Taken 1575 | . 362 1213 Core 263 | . 102 161 Absorbed by Shields 15 | . 15 . Core Remaining (%) 79 | 100 59 . Volleys Fired 70 | . 33 37 Largest 2 | . 2 2 Hottest 70 | . 40 70 Shots Fired 104 | . 62 42 Gun 98 | . 62 36 Cannon . | . . . Launcher 6 | . . 6 Special . | . . . Kinetic 80 | . 62 18 Thermal . | . . . Explosive 6 | . . 6 Electromagnetic 18 | . . 18 Robot Hit Streak 12 | . 6 12 Robot Miss Streak 5 | . 5 3 Penetration Max . | . . . Secondary Targets 2 | . 2 . Max Gunslinging Chain 1 | . 1 . Shots Hit Robots 59 | . 31 28 Core Hits 32 | . 11 21 Critical Kills . | . . . Critical Parts Destroyed . | . . . Critical Strikes . | . . . Melee Attacks . | . . . Impact . | . . . Slashing . | . . . Piercing . | . . . Sneak Attacks . | . . . Combat Hostiles . | . . . Follow-up Attacks . | . . . Damage Inflicted 863 | . 262 601 Guns 578 | . 250 328 Cannons . | . . . Explosions 273 | . . 273 Melee . | . . . Ramming 12 | . 12 . Kinetic 404 | . 250 154 Thermal 116 | . . 116 Explosive 157 | . . 157 Electromagnetic 174 | . . 174 Impact . | . . . Slashing . | . . . Piercing . | . . . Highest Corruption . | . . . Average Corruption . | . . . Corruption Purged . | . . . Corruption Blocked . | . . . Overload Shots . | . . . Overflow Damage . | . . . Projectiles . | . . . Explosions . | . . . Melee . | . . . Knockbacks . | . . . Impact . | . . . Kinetic . | . . . Secondary . | . . . Self-Inflicted Damage 129 | . . 129 Shots 4 | . . 4 Rammed . | . . . Targets Rammed 1 | . 1 . Kicked 1 | . 1 . Crushed . | . . . Highest Temperature 135 | . 12 135 Average Temperature 29 | . 6 39 Received Heat Transfer 515 | . 98 417 Siege Activations . | . . . Martial Activations . | . . . Shielding Activations . | . . . Robots Disrupted . | . . . Combat Hostiles . | . . . Robots Corrupted . | . . . Combat Hostiles . | . . . Parts Fried . | . . . Impact Corruptions . | . . . Robots Melted . | . . . Combat Hostiles . | . . . Parts Melted . | . . . Heat Transferred 150 | . . 150 Parts Sabotaged . | . . . Parts Stolen . | . . . Parts Stripped . | . . . Power Chain Reactions 1 | . . 1 Alert | -11 -10 -9 ------- Run | Yrd Mat Mat Maximum Alert Level 1 | . . 1 Low Security (%) 99 | 100 100 99 Level 1 . | . . . Level 2 . | . . . Level 3 . | . . . Level 4 . | . . . Level 5 . | . . . High Security . | . . . Max Security . | . . . Peak Influence 209 | . 95 209 Initial . | . . . Average 54 | . 31 86 Influence Increases 507 | . 125 382 Destroy 0b10 Robot/C 320 | . 100 220 Destroy 0b10 Robot/NC 15 | . . 15 Destroy Leader 60 | . 10 50 Successful Hack 30 | . . 30 Disable Machine 15 | . . 15 Destroy Structure 52 | . . 52 Lose Combat Pursuer 15 | . 15 . Influence Decreases 385 | . 125 260 Time Decay 305 | . 125 180 Lost Part 80 | . . 80 Squads Dispatched 2 | . 1 1 Investigation . | . . . Extermination . | . . . Reinforcement 2 | . 1 1 Assault . | . . . Garrison . | . . . Intercept . | . . . Searches Triggered . | . . . Construction Impeded 1 | . . 1 Haulers Reinforced . | . . . Active Scanning Responses . | . . . Cargo Convoy Interrupts . | . . . Stealth | -11 -10 -9 --------- Run | Yrd Mat Mat Distress Signals 3 | . . 3 Communications Jammed . | . . . Distress Signals . | . . . Times Spotted 29 | . 9 20 Peak Tracking Total 9 | . 5 9 Tactical Retreats 1 | . 1 . Traps | -11 -10 -9 ------- Run | Yrd Mat Mat Traps Triggered . | . . . Indirectly . | . . . Trap Hack Attempts . | . . . Triggered . | . . . Disarmed . | . . . Reprogrammed . | . . . Reused . | . . . Traps Extracted . | . . . Installed . | . . . Triggered . | . . . Machines | -11 -10 -9 ---------- Run | Yrd Mat Mat Machines Disabled 1 | . . 1 Max in Single Turn 1 | . . 1 Machines Repaired . | . . . Machines Dismantled . | . . . Machines Sabotaged . | . . . Overloaded Fab Kills . | . . . Hacking | -11 -10 -9 --------- Run | Yrd Mat Mat Machines Accessed 3 | . 1 2 Terminals 2 | . . 2 Fabricators . | . . . Repair Stations . | . . . Recycling Units 1 | . 1 . Scanalyzers . | . . . Garrison Access . | . . . Total Hacks 6 | . 3 3 Successful 2 | . . 2 Failed 4 | . 3 1 Catastrophic . | . . . Database Lockouts . | . . . Manual . | . . . Terminals 3 | . . 3 Fabricators . | . . . Repair Stations . | . . . Recycling Units 3 | . 3 . Scanalyzers . | . . . Garrison Access . | . . . Terminal Hacks 2 | . . 2 Robot Analysis 1 | . . 1 Branch Access Points 1 | . . 1 Fabricator Hacks . | . . . Repair Station Hacks . | . . . Recycling Unit Hacks . | . . . Scanalyzer . | . . . Garrison Access Hacks . | . . . Unauthorized Hacks . | . . . Terminals . | . . . Fabricators . | . . . Repair Stations . | . . . Recycling Units . | . . . Scanalyzers . | . . . Garrison Access . | . . . Data Cores Recovered . | . . . Used . | . . . Hacking Detections 2 | . . 2 Full Trace Events . | . . . Feedback Events . | . . . Feedback Blocked . | . . . Robot Schematics Acquired . | . . . Robots Built . | . . . Authchips . | . . . Time . | . . . Total Robot Build Rating . | . . . Part Schematics Acquired . | . . . Parts Built . | . . . Authchips . | . . . Time . | . . . Total Part Build Rating . | . . . Part Studies Acquired . | . . . Parts Repaired . | . . . Time . | . . . Parts Recycled . | . . . Recycled Matter . | . . . Retrieved Matter . | . . . Retrieved Components . | . . . Parts Scanalyzed . | . . . Part Schematics Acquired . | . . . Parts Damaged . | . . . Bothacking | -11 -10 -9 ------------ Run | Yrd Mat Mat Used RIF Installer . | . . . Robots Hacked . | . . . Non-combat . | . . . Combat . | . . . Robot Hacks Applied . | . . . Relay Couplers Released . | . . . Fabnet Peak Effective % . | . . . Robots Rewired . | . . . Allies Hacked . | . . . Hacks Repelled . | . . . Allies | -11 -10 -9 -------- Run | Yrd Mat Mat Total Allies . | . . . Largest Group . | . . . Highest-Rated Group . | . . . Highest-Rated Ally . | . . . Total Orders . | . . . Ally Attacks . | . . . Total Damage . | . . . Kills . | . . . Allies Corrupted . | . . . Allies Melted . | . . . Intel | -11 -10 -9 ------- Run | Yrd Mat Mat Active Infowar (turns) . | . . . Robot Analysis Total 1 | . . 1 Derelict Logs Recovered . | . . . Drone Launches . | . . . Drone Recoveries . | . . . Exploration | -11 -10 -9 ------------- Run | Yrd Mat Mat Turns Passed 920 | 68 426 426 Spaces Moved 492 | 52 271 169 Core 13 | 13 . . Treads 78 | . . 78 Legs 401 | 39 271 91 Wheels . | . . . Hover . | . . . Flight . | . . . Fastest Speed 50 | 50 120 160 Average Speed 145 | 102 124 192 Slowest Speed 400 | 120 190 400 Overloaded Moves . | . . . Propulsion Burnouts . | . . . Robots Hopped . | . . . Potential Cave-ins . | . . . Cave-ins Triggered . | . . . Exploration Rate (%) 22 | 3 43 21 Regions Visited 2 Branch Regions . Pre-discovered Areas . | . . . Known Exits Taken . | . . . Unknown Exits Taken 2 | 1 1 . Scrap Searched . | . . . Spaces Dug . | . . . Terrain Destroyed 57 | . . 57 Melee . | . . . Projectile . | . . . AOE 57 | . . 57 Terrain Rammed . | . . . Walls Destroyed . | . . . Machines Disabled . | . . . Actions | -11 -10 -9 --------- Run | Yrd Mat Mat Total 600 | 63 309 228 Wait 7 | . . 7 Move 490 | 51 270 169 Hop . | . . . Pick Up 10 | 6 1 3 Fast Attach 13 | 6 2 5 Attach 4 | . . 4 Detach 1 | . . 1 Swap 3 | . 2 1 Drop 1 | . . 1 Fire 70 | . 33 37 Melee . | . . . Ram . | . . . Kick 1 | . 1 . Crush . | . . . Escape Stasis . | . . . Rewire . | . . . Trap . | . . . Miscellaneous . | . . . Route ------- -11/Scrapyard -10/Materials (discovered 2 exits: *Mat / [*Min]) -9/Materials (discovered 1 exit: *Min) History --------- Turn | Location | Event 3 | -11/Scrapyard | Discovered new exit (range 16) 69 | -11/Scrapyard | Entered Materials 256 | -10/Materials | Discovered new exit (range 12) 301 | -10/Materials | Build established: Mutant 432 | -10/Materials | Discovered new exit (range 12) 495 | -10/Materials | Entered another Materials area 495 | -9/Materials | Evolved 2 slots: Propulsion x1, Utility x1 665 | -9/Materials | Identified exit to Mines 765 | -9/Materials | Lost 4 parts (2n1u1w) 921 | -9/Materials | Self-destructed Last Messages --------------- 00868_ R-06 Scavenger inserts Lgt. Ion Engine into recycling unit. 00868_ U-05 Engineer builds a Wall. 00871_ R-06 Scavenger inserts Wheel into recycling unit. 00872_ U-05 Engineer builds a Wall. 00873_ U-05 Engineer lays Concrete. 00876_ U-05 Engineer builds a Wall. 00877_ U-05 Engineer lays Concrete. 00878_ U-05 Engineer builds a Wall. 00884_ U-05 Engineer lays Concrete. 00885_ R-06 Scavenger collects Corrupted Heat Sink. 00885_ U-05 Engineer lays Concrete. 00886_ U-05 Engineer builds a Wall. 00890_ U-05 Engineer lays Concrete. 00891_ U-05 Engineer builds a Wall. 00912_ Critical hit (Burn: +37). 00917_ Lgt. Armor Plating destroyed. 00918_ Lgt. Treads destroyed. Map ----- +----------------------------------------------------+ | ??????????????????????????????????????? | | ?????????????????????????????????????????########+ | | ??????????????????????????????????????????????# | | ??????????????????????????????????????????????# ! | | ?????????????????????????????????????????????## | | ?????????????????????????????????????????????# | | ?????????????????????????????????????????????# | | ??????????????????????????????????????????????# | | ??????????????????????????????????????????????### | | ??????????????????????????????????????????????# ! | | ??????????????????????????????????????????????## | | ???????????????????????????????????????????????## | | ????????????????????????????????????????????????# | | ????????????????????????????????????????????????# | | ????????????????????????????????????????????????# | | ??????????????????????????????##????????????????# | | ?????????????????????????????? #????????????????# | | ????????????????????????????? #????????????????# | | ????????????????????????????? #??????######????# | | ?????????????????????????????" #?????##!!!!##?### | | ?????????????????????????????" #?????#! !#?# # | | ??????????????#######???????? ####### #?# # | | ???????????#### #######+## # ##### | | ?????????? w g w g a | | ?????????? g >k g g k | | ?????????? g @ [!% | | ??????????????#" "#######+## # [! #### | | ??????????????#"???????????? ####### [ #### | | ???????????????????????????? ??????# #??? | | ???????????????????????????""" #?????# #??? | | ???????????????????????????""" #?????# " " #??? | | ?????????????????????????? """ #???? "Y" #??? | | ?????????????????????????? #??# """ ?? | | ?????????????????????????#######??# ! +? | | ??????????????????????????????????# #? | | ??????????????????????????????????# ##+###? | | ??????????????????????????????????# #### ###?????? | | ??????????????????????????????????# ???# #???????? | | ??????????????????????????????????#????? #???????? | | ???????????????????????????????????????? ???????? | | ???????????????????????????????????????? ????????? | | ?????????????????????????????????????????????????? | | ?????????????????????????????????????????????????? | | ?????????????????????????????????????????????????? | | ?????????????????????????????????????????????????? | | ?????????????????????????????????????????????????? | | ?????????????????????????????????????????????????? | | ?????????????????????????????????????????????????? | | ?????????????????????????????????????????????????? | | ?????????????????????????????????????????????????? | +----------------------------------------------------+ Best States ------------- Heat Dissipation 28 Energy Generation 12 Energy Capacity 265 Matter Stores 300 Matter Capacity 300 Sight Range 16 Terrain Scan Density 10 Armor Coverage 150 Evasion (%) 55 Recoil Reduction 3 Item Schematics ----------------- None Robot Schematics ------------------ None Fabricated ------------ Nothing Repaired ---------- Nothing Studied --------- None Alien Tech Used ----------------- None Achievements -------------- None Challenges ------------ None Game ------ Seed BoreIonCore Manual? 0 Play Time 00:19:54 Cumulative 34.3 hours Start 2026.09.02 @ 12:05:26 End 2026.09.12 @ 08:19:30 Sessions 6 Manual Loads 0 Difficulty Rogue Special Mode None Game No. 52 Rogue 47 Adventurer 1 Explorer 4 Win Type - Total 1 Types 1/0/0/0/0/0/0/0/0/0 Lore% 12 Gallery% 25 Achievement% 22 Wizard Run 0 Options --------- Layout 1 ASCII 0 Keyboard 0 Movement Arrows Keybinds 0 Fullscreen 1 Font 24/Smallcaps Map View 50x35 Zoom Use 0% Tactical HUD 1 Map Filters NONE Filters NONE Steam 1 RUN: 894eccd4-f520-4eee-a983-5569ec58e895